Workbook

Sheet Sines
B1: Exploring Cardioids
B3: This graphing utility produces the graph
B4: of the cardioid in polar form
C5: r = a*sin(Q) + b
B6: on the interval from Q = 0 to Q = 2p.
A9: What is the value of a (from 0 to 5)?
C10: 16 | F10: =C10/5 -> 3.20
A13: What is the value of b (from 0 to 5)?
C14: 18 | F14: =C14/5 -> 3.60
I18: The graph of the cardioid r = | M18: =TEXT(a,"0.00") & " sin(Q) + " &TEXT(ABS(b),"0.00") -> 3.20 sin(Q) + 3.60
A19: Click each item below for suggestions and investigations
B20: Item 1
B21: Item 2 | I21: Now trace along the cardioid:
B22: Item 3 | I22: Q = | J22: =K22*Calcs!B12 -> 2.50 | K22: 80
B23: Item 4 | I23: r = | J23: =LOOKUP(J22,Calcs!C3:C204,Calcs!D3:D204) -> 5.59
A27: To access/download all the DIGMath Apps for Calculus
A28: Click this link: | C28: DIGMath for Calculus
A30: Created by: Sheldon P. Gordon
A31: Farmingdale State College
A32: Development of this module was supported by the
A33: NSF's Division of Undergraduate Education
A34: under grants DUE-0310123 and DUE-0442160.

Sheet Cosines
B1: Exploring Cardioids
B3: This graphing utility produces the graph
B4: of the cardioid in polar form
C5: r = a*cos(Q) + b
B6: on the interval from Q = 0 to Q = 2p.
A9: What is the value of a (from 0 to 5)?
C10: 10 | F10: =C10/5 -> 2.00
A13: What is the value of b (from 0 to 5)?
C14: 16 | F14: =C14/4 -> 4.00
I18: The graph of the cardioid r = | M18: =TEXT(aa,"0.00") & " cos(Q) + " & TEXT(ABS(bb),"0.00") -> 2.00 cos(Q) + 4.00
A19: Click each item below for suggestions and investigations
B20: Item 1
B21: Item 2 | I21: Now trace along the cardioid:
B22: Item 3 | I22: Q = | J22: =K22*Calcs!B12 -> 0.94 | K22: 30
B23: Item 4 | I23: r = | J23: =LOOKUP(J22,Calcs!K3:K204,Calcs!L3:L204) -> 5.18
A26: To access/download all the DIGMath Apps for Calculus
A27: Click this link: | C27: DIGMath for Calculus
A29: Created by: Sheldon P. Gordon & Florence S. Gordon
A30: Farmingdale State College NYIT
A31: Development of this module was supported by the
A32: NSF's Division of Undergraduate Education
A33: under grants DUE-0310123 and DUE-0442160.

Sheet Calcs
C1: Q | D1: r = f(Q) | E1: x | F1: y | H1: Tracing point -- sine | K1: Q | L1: r = f(Q) | M1: x | N1: y
C3: 0 | D3: =a*SIN(Q) + b -> 3.6 | E3: =D3*COS(C3) -> 3.6 | F3: =D3*SIN(C3) -> 0 | H3: 0 | I3: 0 | K3: 0 | L3: =aa*COS(QQ) + bb -> 6 | M3: =L3*COS(K3) -> 6 | N3: =L3*SIN(K3) -> 0
C4: =C3+Calcs!B$12 -> 0.03125962839 | D4: 3.700014521 | E4: =D4*COS(C4) -> 3.698206907 | F4: =D4*SIN(C4) -> 0.1156422432 | H4: =LOOKUP(Sines!$J$22,Calcs!C3:C204,E3:E204) -> -4.376183256 | I4: =LOOKUP(Sines!J22,Calcs!C3:C204,F3:F204) -> 3.481904071 | K4: =K3+Calcs!B$12 -> 0.03125962839 | L4: 5.999022915 | M4: =L4*COS(K4) -> 5.996092138 | N4: =L4*SIN(K4) -> 0.1874966877
C5: =C4+Calcs!B$12 -> 0.06251925679 | D5: 3.799931318 | E5: 3.792507422 | F5: 0.2374141496 | K5: =K4+Calcs!B$12 -> 0.06251925679 | L5: 5.996092615 | M5: 5.984378096 | N5: 0.3746270945
C6: =C5+Calcs!B$12 -> 0.09377888518 | D6: 3.899652767 | E6: 3.882517622 | F6: 0.3651692937 | K6: =K5+Calcs!B$12 -> 0.09377888518 | L6: 5.991211964 | M6: 5.964886471 | N6: 0.5610260124
C7: =C6+Calcs!B$12 -> 0.1250385136 | D7: 3.999081428 | E7: 3.967860059 | F7: 0.4987372277 | H7: Start line: | K7: =K6+Calcs!B$12 -> 0.1250385136 | L7: 5.98438573 | M7: 5.937664821 | N7: 0.7463303766
C8: =C7+Calcs!B$12 -> 0.156298142 | D8: 4.098120154 | E8: 4.048165262 | F8: 0.6379238255 | H8: 0 | I8: 0 | K8: =K7+Calcs!B$12 -> 0.156298142 | L8: 5.975620582 | M8: 5.902779506 | N8: 0.9301803262
C9: =C8+Calcs!B$12 -> 0.1875577704 | D9: 4.196672174 | E9: 4.123073215 | F9: 0.7825117214 | H9: =1.2*D3*COS(C3) -> 4.32 | I9: =1.2*D3*SIN(C3) -> 0 | K9: =K8+Calcs!B$12 -> 0.1875577704 | L9: 5.964925086 | M9: 5.860315468 | N9: 1.112220255
C10: =C9+Calcs!B$12 -> 0.2188173988 | D10: 4.294641194 | E10: 4.192234811 | F10: 0.9322608401 | K10: =K9+Calcs!B$12 -> 0.2188173988 | L10: 5.952309691 | M10: 5.810375947 | N10: 1.292099848
C11: =C10+Calcs!B$12 -> 0.2500770272 | D11: 4.391931491 | E11: 4.255313269 | F11: 1.086909018 | K11: =K10+Calcs!B$12 -> 0.2500770272 | L11: 5.937786724 | M11: 5.753082142 | N11: 1.469475093
A12: delta Q = | B12: =2*PI()/201 -> 0.03125962839 | C12: =C11+Calcs!B$12 -> 0.2813366555 | D12: 4.488448004 | E12: 4.311985513 | F12: 1.24617271 | K12: =K11+Calcs!B$12 -> 0.2813366555 | L12: 5.921370375 | M12: 5.68857281 | N12: 1.644009279
C13: =C12+Calcs!B$12 -> 0.3125962839 | D13: 4.584096428 | E13: 4.361943516 | F13: 1.409747788 | K13: =K12+Calcs!B$12 -> 0.3125962839 | L13: 5.903076684 | M13: 5.617003803 | N13: 1.815373963
C14: =C13+Calcs!B$12 -> 0.3438559123 | D14: 4.678783307 | E14: 4.404895582 | F14: 1.577310415 | K14: =K13+Calcs!B$12 -> 0.3438559123 | L14: 5.882923527 | M14: 5.538547556 | N14: 1.983249905
C15: =C14+Calcs!B$12 -> 0.3751155407 | D15: 4.772416122 | E15: 4.440567581 | F15: 1.748518001 | K15: =K14+Calcs!B$12 -> 0.3751155407 | L15: 5.860930593 | M15: 5.45339252 | N15: 2.147327974
C16: =C15+Calcs!B$12 -> 0.4063751691 | D16: 4.864903388 | E16: 4.468704127 | F16: 1.923010242 | K16: =K15+Calcs!B$12 -> 0.4063751691 | L16: 5.837119372 | M16: 5.361742536 | N16: 2.307310021
C17: =C16+Calcs!B$12 -> 0.4376347975 | D17: 4.956154735 | E17: 4.489069687 | F17: 2.100410223 | K17: =K16+Calcs!B$12 -> 0.4376347975 | L17: 5.811513129 | M17: 5.263816168 | N17: 2.462909703
C18: =C17+Calcs!B$12 -> 0.4688944259 | D18: 5.046081005 | E18: 4.501449623 | F18: 2.280325591 | H18: Tracing point -- cosine | K18: =K17+Calcs!B$12 -> 0.4688944259 | L18: 5.784136885 | M18: 5.159845983 | N18: 2.613853275
C19: =C18+Calcs!B$12 -> 0.5001540543 | D19: 5.134594331 | E19: 4.505651165 | F19: 2.462349797 | K19: =K18+Calcs!B$12 -> 0.5001540543 | L19: 5.755017388 | M19: 5.050077791 | N19: 2.75988033
C20: =C19+Calcs!B$12 -> 0.5314136827 | D20: 5.221608227 | E20: 4.501504303 | F20: 2.646063394 | H20: 0 | I20: 0 | K20: =K19+Calcs!B$12 -> 0.5314136827 | L20: 5.72418309 | M20: 4.934769843 | N20: 2.900744498
C21: =C20+Calcs!B$12 -> 0.5626733111 | D21: 5.307037676 | E21: 4.488862606 | F21: 2.831035393 | H21: =LOOKUP(Cosines!$J$22,Calcs!K3:K204,M3:M204) -> 3.066204215 | I21: =LOOKUP(Cosines!J22,Calcs!K3:K204,N3:N204) -> 4.178920655 | K21: =K20+Calcs!B$12 -> 0.5626733111 | L21: 5.691664119 | M21: 4.814191982 | N21: 3.03621409
C22: =C21+Calcs!B$12 -> 0.5939329395 | D22: 5.390799203 | E22: 4.467603945 | F22: 3.016824662 | K22: =K21+Calcs!B$12 -> 0.5939329395 | L22: 5.657492248 | M22: 4.688624772 | N22: 3.166072691
C23: =C22+Calcs!B$12 -> 0.6251925679 | D23: 5.472810968 | E23: 4.437631146 | F23: 3.202981377 | K23: =K22+Calcs!B$12 -> 0.6251925679 | L23: 5.621700867 | M23: 4.558358585 | N23: 3.290119701
C24: =C23+Calcs!B$12 -> 0.6564521963 | D24: 5.552992838 | E24: 4.398872541 | F24: 3.389048513 | H24: Start line: | K24: =K23+Calcs!B$12 -> 0.6564521963 | L24: 5.584324947 | M24: 4.423692662 | N24: 3.408170821
C25: =C24+Calcs!B$12 -> 0.6877118247 | D25: 5.631266468 | E25: 4.351282435 | F25: 3.574563359 | H25: 0 | I25: 0 | K25: =K24+Calcs!B$12 -> 0.6877118247 | L25: 5.545401007 | M25: 4.284934149 | N25: 3.520058474
C26: =C25+Calcs!B$12 -> 0.7189714531 | D26: 5.707555379 | E26: 4.294841473 | F26: 3.759059074 | H26: =1.2*L3*COS(K3) -> 7.2 | I26: =1.2*D3*SIN(K3) -> 0 | K26: =K25+Calcs!B$12 -> 0.7189714531 | L26: 5.504967079 | M26: 4.142397112 | N26: 3.62563218
C27: =C26+Calcs!B$12 -> 0.7502310815 | D27: 5.781785029 | E27: 4.229556922 | F27: 3.942066255 | K27: =K26+Calcs!B$12 -> 0.7502310815 | L27: 5.463062671 | M27: 3.99640153 | N27: 3.724758858
C28: =C27+Calcs!B$12 -> 0.7814907098 | D28: 5.85388289 | E28: 4.155462849 | F28: 4.123114527 | K28: =K27+Calcs!B$12 -> 0.7814907098 | L28: 5.419728726 | M28: 3.847272279 | N28: 3.817323077
C29: =C28+Calcs!B$12 -> 0.8127503382 | D29: 5.923778517 | E29: 4.072620199 | F29: 4.301734142 | K29: =K28+Calcs!B$12 -> 0.8127503382 | L29: 5.375007586 | M29: 3.695338102 | N29: 3.903227236
C30: =C29+Calcs!B$12 -> 0.8440099666 | D30: 5.991403615 | E30: 3.981116788 | F30: 4.477457582 | K30: =K29+Calcs!B$12 -> 0.8440099666 | L30: 5.328942947 | M30: 3.540930572 | N30: 3.982391696
C31: =C30+Calcs!B$12 -> 0.875269595 | D31: 6.056692109 | E31: 3.881067185 | F31: 4.649821158 | K31: =K30+Calcs!B$12 -> 0.875269595 | L31: 5.281579818 | M31: 3.384383051 | N31: 4.054754831
C32: =C31+Calcs!B$12 -> 0.9065292234 | D32: 6.119580206 | E32: 3.772612503 | F32: 4.818366611 | K32: =K31+Calcs!B$12 -> 0.9065292234 | L32: 5.232964477 | M32: 3.226029654 | N32: 4.120273035
C33: =C32+Calcs!B$12 -> 0.9377888518 | D33: 6.18000646 | E33: 3.655920094 | F33: 4.982642683 | K33: =K32+Calcs!B$12 -> 0.9377888518 | L33: 5.183144425 | M33: 3.066204215 | N33: 4.178920655
C34: =C33+Calcs!B$12 -> 0.9690484802 | D34: 6.237911828 | E34: 3.531183141 | F34: 5.142206686 | K34: =K33+Calcs!B$12 -> 0.9690484802 | L34: 5.13216834 | M34: 2.905239256 | N34: 4.230689865
C35: =C34+Calcs!B$12 -> 1.000308109 | D35: 6.293239733 | E35: 3.398620165 | F35: 5.296626032 | K35: =K34+Calcs!B$12 -> 1.000308109 | L35: 5.080086032 | M35: 2.743464981 | N35: 4.275590484
C36: =C35+Calcs!B$12 -> 1.031567737 | D36: 6.345936115 | E36: 3.258474429 | F36: 5.445479737 | K36: =K35+Calcs!B$12 -> 1.031567737 | L36: 5.026948387 | M36: 2.581208269 | N36: 4.313649726
C37: =C36+Calcs!B$12 -> 1.062827365 | D37: 6.395949484 | E37: 3.11101326 | F37: 5.588359893 | K37: =K36+Calcs!B$12 -> 1.062827365 | L37: 4.972807327 | M37: 2.418791701 | N37: 4.3449119
C38: =C37+Calcs!B$12 -> 1.094086994 | D38: 6.443230973 | E38: 2.956527277 | F38: 5.724873085 | K38: =K37+Calcs!B$12 -> 1.094086994 | L38: 4.917715751 | M38: 2.256532603 | N38: 4.369438044
C39: =C38+Calcs!B$12 -> 1.125346622 | D39: 6.487734385 | E39: 2.795329533 | F39: 5.854641769 | K39: =K38+Calcs!B$12 -> 1.125346622 | L39: 4.86172749 | M39: 2.094742113 | N39: 4.387305513
C40: =C39+Calcs!B$12 -> 1.156606251 | D40: 6.529416235 | E40: 2.627754578 | F40: 5.977305601 | K40: =K39+Calcs!B$12 -> 1.156606251 | L40: 4.804897248 | M40: 1.933724285 | N40: 4.398607501
C41: =C40+Calcs!B$12 -> 1.187865879 | D41: 6.568235797 | E41: 2.454157437 | F41: 6.092522693 | K41: =K40+Calcs!B$12 -> 1.187865879 | L41: 4.747280552 | M41: 1.773775216 | N41: 4.403452523
C42: =C41+Calcs!B$12 -> 1.219125507 | D42: 6.604155141 | E42: 2.27491252 | F42: 6.199970819 | K42: =K41+Calcs!B$12 -> 1.219125507 | L42: 4.688933701 | M42: 1.615182223 | N42: 4.401963838
C43: =C42+Calcs!B$12 -> 1.250385136 | D43: 6.637139171 | E43: 2.090412454 | F43: 6.299348549 | K43: =K42+Calcs!B$12 -> 1.250385136 | L43: 4.629913702 | M43: 1.458223041 | N43: 4.394278832
C44: =C43+Calcs!B$12 -> 1.281644764 | D44: 6.667155658 | E44: 1.901066846 | F44: 6.390376312 | K44: =K43+Calcs!B$12 -> 1.281644764 | L44: 4.570278225 | M44: 1.303165076 | N44: 4.380548349
C45: =C44+Calcs!B$12 -> 1.312904393 | D45: 6.694175274 | E45: 1.707300995 | F45: 6.472797379 | K45: =K44+Calcs!B$12 -> 1.312904393 | L45: 4.510085537 | M45: 1.150264702 | N45: 4.360935985
C46: =C45+Calcs!B$12 -> 1.344164021 | D46: 6.718171618 | E46: 1.509554529 | F46: 6.546378772 | K46: =K45+Calcs!B$12 -> 1.344164021 | L46: 4.449394453 | M46: 0.9997665924 | N46: 4.335617344
C47: =C46+Calcs!B$12 -> 1.375423649 | D47: 6.739121245 | E47: 1.308280001 | F47: 6.610912085 | K47: =K46+Calcs!B$12 -> 1.375423649 | L47: 4.388264272 | M47: 0.8519031158 | N47: 4.304779251
C48: =C47+Calcs!B$12 -> 1.406683278 | D48: 6.757003683 | E48: 1.103941436 | F48: 6.666214224 | K48: =K47+Calcs!B$12 -> 1.406683278 | L48: 4.326754724 | M48: 0.706893772 | N48: 4.268618938
C49: =C48+Calcs!B$12 -> 1.437942906 | D49: 6.771801462 | E49: 0.8970128272 | F49: 6.712128055 | K49: =K48+Calcs!B$12 -> 1.437942906 | L49: 4.264925908 | M49: 0.5649446855 | N49: 4.227343197
C50: =C49+Calcs!B$12 -> 1.469202535 | D50: 6.783500121 | E50: 0.6879766069 | F50: 6.748522956 | K50: =K49+Calcs!B$12 -> 1.469202535 | L50: 4.202838238 | M50: 0.426248152 | N50: 4.181167513
C51: =C50+Calcs!B$12 -> 1.500462163 | D51: 6.792088231 | E51: 0.4773220759 | F51: 6.775295283 | K51: =K50+Calcs!B$12 -> 1.500462163 | L51: 4.140552378 | M51: 0.2909822412 | N51: 4.130315161
C52: =C51+Calcs!B$12 -> 1.531721791 | D52: 6.7975574 | E52: 0.2655438129 | F52: 6.792368739 | K52: =K51+Calcs!B$12 -> 1.531721791 | L52: 4.078129186 | M52: 0.1593104567 | N52: 4.075016299
C53: =C52+Calcs!B$12 -> 1.56298142 | D53: 6.799902284 | E53: 0.05314006372 | F53: 6.799694641 | K53: =K52+Calcs!B$12 -> 1.56298142 | L53: 4.015629655 | M53: 0.03138145327 | N53: 4.015507033
C54: =C53+Calcs!B$12 -> 1.594241048 | D54: 6.799120592 | E54: -0.1593888849 | F54: 6.797252093 | K54: =K53+Calcs!B$12 -> 1.594241048 | L54: 3.953114853 | M54: -0.0926711859 | N54: 3.952028478
C55: =C54+Calcs!B$12 -> 1.625500676 | D55: 6.795213089 | E55: -0.3715423375 | F55: 6.785048062 | K55: =K54+Calcs!B$12 -> 1.625500676 | L55: 3.890645861 | M55: -0.2127291137 | N55: 3.884825806
C56: =C55+Calcs!B$12 -> 1.656760305 | D56: 6.788183591 | E56: -0.582820824 | F56: 6.763117354 | K56: =K55+Calcs!B$12 -> 1.656760305 | L56: 3.828283718 | M56: -0.3286893233 | N56: 3.814147291
C57: =C56+Calcs!B$12 -> 1.688019933 | D57: 6.778038967 | E57: -0.7927277297 | F57: 6.731522486 | K57: =K56+Calcs!B$12 -> 1.688019933 | L57: 3.766089356 | M57: -0.4404641932 | N57: 3.740243352
C58: =C57+Calcs!B$12 -> 1.719279562 | D58: 6.76478913 | E58: -1.000770914 | F58: 6.690353469 | K58: =K57+Calcs!B$12 -> 1.719279562 | L58: 3.704123545 | M58: -0.5479814722 | N58: 3.663365603
C59: =C58+Calcs!B$12 -> 1.75053919 | D59: 6.748447025 | E59: -1.206464314 | F59: 6.639727488 | K59: =K58+Calcs!B$12 -> 1.75053919 | L59: 3.64244683 | M59: -0.6511842058 | N59: 3.583765902
C60: =C59+Calcs!B$12 -> 1.781798818 | D60: 6.729028621 | E60: -1.409329522 | F60: 6.579788483 | K60: =K59+Calcs!B$12 -> 1.781798818 | L60: 3.581119474 | M60: -0.7500306037 | N60: 3.501695416
C61: =C60+Calcs!B$12 -> 1.813058447 | D61: 6.70655289 | E61: -1.60889734 | F61: 6.510706645 | K61: =K60+Calcs!B$12 -> 1.813058447 | L61: 3.520201401 | M61: -0.8444938501 | N61: 3.417403699
C62: =C61+Calcs!B$12 -> 1.844318075 | D62: 6.681041794 | E62: -1.804709294 | F62: 6.432677811 | K62: =K61+Calcs!B$12 -> 1.844318075 | L62: 3.459752132 | M62: -0.9345618572 | N62: 3.331137786
C63: =C62+Calcs!B$12 -> 1.875577704 | D63: 6.652520259 | E63: -1.996319114 | F63: 6.345922769 | K63: =K62+Calcs!B$12 -> 1.875577704 | L63: 3.39983073 | M63: -1.020236964 | N63: 3.243141306
C64: =C63+Calcs!B$12 -> 1.906837332 | D64: 6.621016152 | E64: -2.183294163 | F64: 6.250686481 | K64: =K63+Calcs!B$12 -> 1.906837332 | L64: 3.340495745 | M64: -1.101535579 | N64: 3.153653625
C65: =C64+Calcs!B$12 -> 1.93809696 | D65: 6.586560257 | E65: -2.365216824 | F65: 6.147237216 | K65: =K64+Calcs!B$12 -> 1.93809696 | L65: 3.281805151 | M65: -1.178487777 | N65: 3.062909011
C66: =C65+Calcs!B$12 -> 1.969356589 | D66: 6.549186239 | E66: -2.541685821 | F66: 6.035865603 | K66: =K65+Calcs!B$12 -> 1.969356589 | L66: 3.223816295 | M66: -1.251136838 | N66: 2.971135829
C67: =C66+Calcs!B$12 -> 2.000616217 | D67: =a*SIN(Q) + b -> 6.508930616 | E67: -2.712317485 | F67: 5.916883607 | K67: =K66+Calcs!B$12 -> 2.000616217 | L67: =aa*COS(QQ) + bb -> 3.166585836 | M67: -1.319538744 | N67: 2.878555776
C68: =C67+Calcs!B$12 -> 2.031875846 | D68: 6.465832721 | E68: =D68*COS(C68) -> -2.876746958 | F68: =D68*SIN(C68) -> 5.79062343 | K68: =K67+Calcs!B$12 -> 2.031875846 | L68: 3.110169693 | M68: =L68*COS(K68) -> -1.383761627 | N68: =L68*SIN(K68) -> 2.785383147
C69: =C68+Calcs!B$12 -> 2.063135474 | D69: 6.419934664 | E69: -3.03462932 | F69: 5.657436344 | K69: =K68+Calcs!B$12 -> 2.063135474 | L69: 3.05462299 | M69: -1.443885175 | N69: 2.691824142
C70: =C69+Calcs!B$12 -> 2.094395102 | D70: 6.371281292 | E70: -3.185640646 | F70: 5.517691454 | K70: =K69+Calcs!B$12 -> 2.094395102 | L70: 3 | M70: -1.5 | N70: 2.598076211
C71: =C70+Calcs!B$12 -> 2.125654731 | D71: 6.319920143 | E71: -3.329478989 | F71: 5.371774407 | K71: =K70+Calcs!B$12 -> 2.125654731 | L71: 2.946354095 | M71: -1.552206963 | N71: 2.504327454
C72: =C71+Calcs!B$12 -> 2.156914359 | D72: 6.265901402 | E72: -3.465865274 | F72: 5.220086042 | K72: =K71+Calcs!B$12 -> 2.156914359 | L72: 2.893737692 | M72: -1.600616469 | N72: 2.410756053
C73: =C72+Calcs!B$12 -> 2.188173988 | D73: 6.209277849 | E73: -3.594544115 | F73: 5.063040984 | K73: =K72+Calcs!B$12 -> 2.188173988 | L73: 2.8422022 | M73: -1.645347727 | N73: 2.317529764
C74: =C73+Calcs!B$12 -> 2.219433616 | D74: 6.15010481 | E74: -3.715284541 | F74: 4.901066206 | K74: =K73+Calcs!B$12 -> 2.219433616 | L74: 2.791797976 | M74: -1.686527983 | N74: 2.224805452
C75: =C74+Calcs!B$12 -> 2.250693244 | D75: 6.088440103 | E75: -3.82788063 | F75: 4.734599536 | K75: =K74+Calcs!B$12 -> 2.250693244 | L75: 2.742574267 | M75: -1.724291729 | N75: 2.132728685
C76: =C75+Calcs!B$12 -> 2.281952873 | D76: 6.024343978 | E76: -3.93215206 | F76: 4.56408814 | K76: =K75+Calcs!B$12 -> 2.281952873 | L76: 2.69457917 | M76: -1.758779889 | N76: 2.04143337
C77: =C76+Calcs!B$12 -> 2.313212501 | D77: 5.957879064 | E77: -4.027944553 | F77: 4.389986973 | K77: =K76+Calcs!B$12 -> 2.313212501 | L77: 2.647859579 | M77: -1.790138983 | N77: 1.951041458
C78: =C77+Calcs!B$12 -> 2.34447213 | D78: 5.889110302 | E78: -4.115130236 | F78: 4.212757208 | K78: =K77+Calcs!B$12 -> 2.34447213 | L78: 2.602461144 | M78: -1.818520285 | N78: 1.861662693
C79: =C78+Calcs!B$12 -> 2.375731758 | D79: 5.818104886 | E79: -4.193607897 | F79: 4.032864648 | K79: =K78+Calcs!B$12 -> 2.375731758 | L79: 2.558428224 | M79: -1.844078959 | N79: 1.77339442
C80: =C79+Calcs!B$12 -> 2.406991386 | D80: 5.744932192 | E80: -4.263303147 | F80: 3.850778126 | K80: =K79+Calcs!B$12 -> 2.406991386 | L80: 2.515803841 | M80: -1.866973199 | N80: 1.686321453
C81: =C80+Calcs!B$12 -> 2.438251015 | D81: 5.669663718 | E81: -4.324168483 | F81: 3.666967904 | K81: =K80+Calcs!B$12 -> 2.438251015 | L81: 2.474629644 | M81: -1.887363351 | N81: 1.600515997
C82: =C81+Calcs!B$12 -> 2.469510643 | D82: 5.592373008 | E82: -4.376183256 | F82: 3.481904071 | K82: =K81+Calcs!B$12 -> 2.469510643 | L82: 2.434945863 | M82: -1.905411048 | N82: 1.516037629
C83: =C82+Calcs!B$12 -> 2.500770272 | D83: 5.513135579 | E83: -4.419353539 | F83: 3.296054947 | K83: =K82+Calcs!B$12 -> 2.500770272 | L83: 2.396791272 | M83: -1.921278343 | N83: 1.432933331
C84: =C83+Calcs!B$12 -> 2.5320299 | D84: 5.432028855 | E84: -4.453711896 | F84: 3.109885502 | K84: =K83+Calcs!B$12 -> 2.5320299 | L84: 2.360203153 | M84: -1.935126844 | N84: 1.351237587
C85: =C84+Calcs!B$12 -> 2.563289528 | D85: 5.349132084 | E85: -4.479317061 | F85: 2.923855796 | K85: =K84+Calcs!B$12 -> 2.563289528 | L85: 2.325217254 | M85: -1.947116869 | N85: 1.270972531
C86: =C85+Calcs!B$12 -> 2.594549157 | D86: 5.264526262 | E86: -4.49625352 | F86: 2.738419443 | K86: =K85+Calcs!B$12 -> 2.594549157 | L86: 2.291867759 | M86: -1.957406606 | N86: 1.192148148
C87: =C86+Calcs!B$12 -> 2.625808785 | D87: 5.178294057 | E87: -4.504630998 | F87: 2.554022104 | K87: =K86+Calcs!B$12 -> 2.625808785 | L87: 2.260187255 | M87: -1.966151296 | N87: 1.114762535
C88: =C87+Calcs!B$12 -> 2.657068413 | D88: 5.090519724 | E88: -4.504583862 | F88: 2.371100017 | K88: =K87+Calcs!B$12 -> 2.657068413 | L88: 2.230206696 | M88: -1.973502439 | N88: 1.038802209
C89: =C88+Calcs!B$12 -> 2.688328042 | D89: 5.001289028 | E89: -4.49627043 | F89: 2.190078575 | K89: =K88+Calcs!B$12 -> 2.688328042 | L89: 2.201955374 | M89: -1.979607013 | N89: 0.9642424704
C90: =C89+Calcs!B$12 -> 2.71958767 | D90: 4.910689153 | E90: -4.479872197 | F90: 2.01137094 | K90: =K89+Calcs!B$12 -> 2.71958767 | L90: 2.175460895 | M90: -1.984606737 | N90: 0.8910478117
C91: =C90+Calcs!B$12 -> 2.750847299 | D91: 4.818808624 | E91: -4.455592985 | F91: 1.835376721 | K91: =K90+Calcs!B$12 -> 2.750847299 | L91: 2.150749145 | M91: -1.988637348 | N91: 0.8191723767
C92: =C91+Calcs!B$12 -> 2.782106927 | D92: 4.725737215 | E92: -4.423658004 | F92: 1.662480704 | K92: =K91+Calcs!B$12 -> 2.782106927 | L92: 2.12784427 | M92: -1.991827921 | N92: 0.7485604634
C93: =C92+Calcs!B$12 -> 2.813366555 | D93: 4.631565866 | E93: -4.38431285 | F93: 1.493051642 | K93: =K92+Calcs!B$12 -> 2.813366555 | L93: 2.106768649 | M93: -1.994300228 | N93: 0.6791470708
C94: =C93+Calcs!B$12 -> 2.844626184 | D94: 4.53638659 | E94: -4.337822423 | F94: 1.327441115 | K94: =K93+Calcs!B$12 -> 2.844626184 | L94: 2.087542877 | M94: -1.996168122 | N94: 0.6108584859
C95: =C94+Calcs!B$12 -> 2.875885812 | D95: 4.440292384 | E95: -4.284469787 | F95: 1.16598246 | K95: =K94+Calcs!B$12 -> 2.875885812 | L95: 2.070185737 | M95: -1.997536981 | N95: 0.5436129087
C96: =C95+Calcs!B$12 -> 2.907145441 | D96: 4.343377141 | E96: -4.224554962 | F96: 1.008989776 | K96: =K95+Calcs!B$12 -> 2.907145441 | L96: 2.054714189 | M96: -1.998503179 | N96: 0.4773211125
C97: =C96+Calcs!B$12 -> 2.938405069 | D97: 4.245735556 | E97: -4.158393662 | F97: 0.8567570033 | K97: =K96+Calcs!B$12 -> 2.938405069 | L97: 2.041143351 | M97: -1.999153612 | N97: 0.4118871365
C98: =C97+Calcs!B$12 -> 2.969664697 | D98: 4.147463033 | E98: -4.086315987 | F98: 0.7095570905 | K98: =K97+Calcs!B$12 -> 2.969664697 | L98: 2.029486482 | M98: -1.999565274 | N98: 0.3472090074
C99: =C98+Calcs!B$12 -> 3.000924326 | D99: 4.048655591 | E99: -4.008665055 | F99: 0.5676412401 | K99: =K98+Calcs!B$12 -> 3.000924326 | L99: 2.019754971 | M99: -1.999804871 | N99: 0.2831794877
C100: =C99+Calcs!B$12 -> 3.032183954 | D100: 3.949409775 | E100: -3.925795607 | F100: 0.4312382446 | K100: =K99+Calcs!B$12 -> 3.032183954 | L100: 2.011958328 | M100: -1.999928499 | N100: 0.2196868461
C101: =C100+Calcs!B$12 -> 3.063443583 | D101: 3.849822557 | E101: -3.838072571 | F101: 0.3005539105 | K101: =K100+Calcs!B$12 -> 3.063443583 | L101: 2.00610417 | M101: -1.99998137 | N101: 0.1566156476
C102: =C101+Calcs!B$12 -> 3.094703211 | D102: 3.74999124 | E102: -3.745869593 | F102: 0.1757705737 | K102: =K101+Calcs!B$12 -> 3.094703211 | L102: 2.002198217 | M102: -1.999997584 | N102: 0.09384756035
C103: =C102+Calcs!B$12 -> 3.125962839 | D103: 3.650013369 | E103: -3.649567545 | F103: 0.05704670804 | K103: =K102+Calcs!B$12 -> 3.125962839 | L103: 2.000244286 | M103: -1.99999997 | N103: 0.03126217366
C104: =C103+Calcs!B$12 -> 3.157222468 | D104: 3.549986631 | E104: -3.549553025 | F104: -0.05548337236 | K104: =K103+Calcs!B$12 -> 3.157222468 | L104: 2.000244286 | M104: -1.99999997 | N104: -0.03126217366
C105: =C104+Calcs!B$12 -> 3.188482096 | D105: 3.45000876 | E105: =D105*COS(C105) -> -3.446216826 | F105: =D105*SIN(C105) -> -0.1617097161 | K105: =K104+Calcs!B$12 -> 3.188482096 | L105: 2.002198217 | M105: -1.999997584 | N105: -0.09384756035
C106: =C105+Calcs!B$12 -> 3.219741725 | D106: 3.350177443 | E106: -3.339952418 | F106: -0.2615468418 | K106: =K105+Calcs!B$12 -> 3.219741725 | L106: 2.00610417 | M106: -1.99998137 | N106: -0.1566156476
C107: =C106+Calcs!B$12 -> 3.251001353 | D107: 3.250590225 | E107: -3.231154413 | F107: -0.3549337501 | K107: =K106+Calcs!B$12 -> 3.251001353 | L107: 2.011958328 | M107: -1.999928499 | N107: -0.2196868461
C108: =C107+Calcs!B$12 -> 3.282260981 | D108: 3.151344409 | E108: -3.12021705 | F108: -0.4418338403 | K108: =K107+Calcs!B$12 -> 3.282260981 | L108: 2.019754971 | M108: -1.999804871 | N108: -0.2831794877
C109: =C108+Calcs!B$12 -> 3.31352061 | D109: 3.052536967 | E109: -3.00753268 | F109: -0.5222347329 | K109: =K108+Calcs!B$12 -> 3.31352061 | L109: 2.029486482 | M109: -1.999565274 | N109: -0.3472090074
C110: =C109+Calcs!B$12 -> 3.344780238 | D110: 2.954264444 | E110: -2.893490275 | F110: -0.596147998 | K110: =K109+Calcs!B$12 -> 3.344780238 | L110: 2.041143351 | M110: -1.999153612 | N110: -0.4118871365
C111: =C110+Calcs!B$12 -> 3.376039867 | D111: 2.856622859 | E111: -2.778473957 | F111: -0.663608792 | K111: =K110+Calcs!B$12 -> 3.376039867 | L111: 2.054714189 | M111: -1.998503179 | N111: -0.4773211125
C112: =C111+Calcs!B$12 -> 3.407299495 | D112: 2.759707616 | E112: -2.66286156 | F112: -0.7246754036 | K112: =K111+Calcs!B$12 -> 3.407299495 | L112: 2.070185737 | M112: -1.997536981 | N112: -0.5436129087
C113: =C112+Calcs!B$12 -> 3.438559123 | D113: 2.66361341 | E113: -2.54702322 | F113: -0.7794287116 | K113: =K112+Calcs!B$12 -> 3.438559123 | L113: 2.087542877 | M113: -1.996168122 | N113: -0.6108584859
C114: =C113+Calcs!B$12 -> 3.469818752 | D114: 2.568434134 | E114: -2.431320012 | F114: -0.8279715568 | K114: =K113+Calcs!B$12 -> 3.469818752 | L114: 2.106768649 | M114: -1.994300228 | N114: -0.6791470708
C115: =C114+Calcs!B$12 -> 3.50107838 | D115: 2.474262785 | E115: -2.316102625 | F115: -0.8704280304 | K115: =K114+Calcs!B$12 -> 3.50107838 | L115: 2.12784427 | M115: -1.991827921 | N115: -0.7485604634
C116: =C115+Calcs!B$12 -> 3.532338009 | D116: 2.381191376 | E116: -2.201710094 | F116: -0.9069426826 | K116: =K115+Calcs!B$12 -> 3.532338009 | L116: 2.150749145 | M116: -1.988637348 | N116: -0.8191723767
C117: =C116+Calcs!B$12 -> 3.563597637 | D117: 2.289310847 | E117: -2.088468582 | F117: -0.9376796547 | K117: =K116+Calcs!B$12 -> 3.563597637 | L117: 2.175460895 | M117: -1.984606737 | N117: -0.8910478117
C118: =C117+Calcs!B$12 -> 3.594857265 | D118: 2.198710972 | E118: -1.976690224 | F118: -0.9628217377 | K118: =K117+Calcs!B$12 -> 3.594857265 | L118: 2.201955374 | M118: -1.979607013 | N118: -0.9642424704
C119: =C118+Calcs!B$12 -> 3.626116894 | D119: 2.109480276 | E119: -1.866672034 | F119: -0.9825693622 | K119: =K118+Calcs!B$12 -> 3.626116894 | L119: 2.230206696 | M119: -1.973502439 | N119: -1.038802209
C120: =C119+Calcs!B$12 -> 3.657376522 | D120: 2.021705943 | E120: -1.758694883 | F120: -0.9971395233 | K120: =K119+Calcs!B$12 -> 3.657376522 | L120: 2.260187255 | M120: -1.966151296 | N120: -1.114762535
C121: =C120+Calcs!B$12 -> 3.68863615 | D121: 1.935473738 | E121: -1.653022547 | F121: -1.006764646 | K121: =K120+Calcs!B$12 -> 3.68863615 | L121: 2.291867759 | M121: -1.957406606 | N121: -1.192148148
C122: =C121+Calcs!B$12 -> 3.719895779 | D122: 1.850867916 | E122: -1.549900826 | F122: -1.011691392 | K122: =K121+Calcs!B$12 -> 3.719895779 | L122: 2.325217254 | M122: -1.947116869 | N122: -1.270972531
C123: =C122+Calcs!B$12 -> 3.751155407 | D123: 1.767971145 | E123: -1.449556755 | F123: -1.012179423 | K123: =K122+Calcs!B$12 -> 3.751155407 | L123: 2.360203153 | M123: -1.935126844 | N123: -1.351237587
C124: =C123+Calcs!B$12 -> 3.782415036 | D124: 1.686864421 | E124: -1.352197881 | F124: -1.008500106 | K124: =K123+Calcs!B$12 -> 3.782415036 | L124: 2.396791272 | M124: -1.921278343 | N124: -1.432933331
C125: =C124+Calcs!B$12 -> 3.813674664 | D125: 1.607626992 | E125: -1.258011638 | F125: -1.000935196 | K125: =K124+Calcs!B$12 -> 3.813674664 | L125: 2.434945863 | M125: -1.905411048 | N125: -1.516037629
C126: =C125+Calcs!B$12 -> 3.844934292 | D126: 1.530336282 | E126: -1.167164799 | F126: -0.9897754622 | K126: =K125+Calcs!B$12 -> 3.844934292 | L126: 2.474629644 | M126: -1.887363351 | N126: -1.600515997
C127: =C126+Calcs!B$12 -> 3.876193921 | D127: 1.455067808 | E127: -1.079803026 | F127: -0.9753193071 | K127: =K126+Calcs!B$12 -> 3.876193921 | L127: 2.515803841 | M127: -1.866973199 | N127: -1.686321453
C128: =C127+Calcs!B$12 -> 3.907453549 | D128: 1.381895114 | E128: -0.9960504972 | F128: -0.9578713452 | K128: =K127+Calcs!B$12 -> 3.907453549 | L128: 2.558428224 | M128: -1.844078959 | N128: -1.77339442
C129: =C128+Calcs!B$12 -> 3.938713178 | D129: 1.310889698 | E129: -0.9160096438 | F129: -0.9377409725 | K129: =K128+Calcs!B$12 -> 3.938713178 | L129: 2.602461144 | M129: -1.818520285 | N129: -1.861662693
C130: =C129+Calcs!B$12 -> 3.969972806 | D130: 1.242120936 | E130: -0.8397609624 | F130: -0.9152409217 | K130: =K129+Calcs!B$12 -> 3.969972806 | L130: 2.647859579 | M130: -1.790138983 | N130: -1.951041458
C131: =C130+Calcs!B$12 -> 4.001232434 | D131: =a*SIN(Q) + b -> 1.175656022 | E131: -0.76736293 | F131: -0.8906858114 | K131: =K130+Calcs!B$12 -> 4.001232434 | L131: =aa*COS(QQ) + bb -> 2.69457917 | M131: -1.758779889 | N131: -2.04143337
C132: =C131+Calcs!B$12 -> 4.032492063 | D132: 1.111559897 | E132: -0.6988520093 | F132: -0.8643906953 | K132: =K131+Calcs!B$12 -> 4.032492063 | L132: 2.742574267 | M132: =L132*COS(K132) -> -1.724291729 | N132: =L132*SIN(K132) -> -2.132728685
C133: =C132+Calcs!B$12 -> 4.063751691 | D133: 1.04989519 | E133: -0.6342427468 | F133: -0.8366696168 | K133: =K132+Calcs!B$12 -> 4.063751691 | L133: 2.791797976 | M133: -1.686527983 | N133: -2.224805452
C134: =C133+Calcs!B$12 -> 4.09501132 | D134: 0.990722151 | E134: -0.5735279632 | F134: -0.807834176 | K134: =K133+Calcs!B$12 -> 4.09501132 | L134: 2.8422022 | M134: -1.645347727 | N134: -2.317529764
C135: =C134+Calcs!B$12 -> 4.126270948 | D135: 0.9340985979 | E135: -0.5166790355 | F135: -0.7781921131 | K135: =K134+Calcs!B$12 -> 4.126270948 | L135: 2.893737692 | M135: -1.600616469 | N135: -2.410756053
C136: =C135+Calcs!B$12 -> 4.157530576 | D136: 0.8800798566 | E136: -0.4636462684 | F136: -0.7480459155 | K136: =K135+Calcs!B$12 -> 4.157530576 | L136: 2.946354095 | M136: -1.552206963 | N136: -2.504327454
C137: =C136+Calcs!B$12 -> 4.188790205 | D137: 0.8287187079 | E137: -0.4143593539 | F137: -0.7176914536 | K137: =K136+Calcs!B$12 -> 4.188790205 | L137: 3 | M137: -1.5 | N137: -2.598076211
C138: =C137+Calcs!B$12 -> 4.220049833 | D138: 0.780065336 | E138: -0.3687279176 | F138: -0.6874166504 | K138: =K137+Calcs!B$12 -> 4.220049833 | L138: 3.05462299 | M138: -1.443885175 | N138: -2.691824142
C139: =C138+Calcs!B$12 -> 4.251309462 | D139: 0.7341672794 | E139: -0.3266421479 | F139: -0.6575001912 | K139: =K138+Calcs!B$12 -> 4.251309462 | L139: 3.110169693 | M139: -1.383761627 | N139: -2.785383147
C140: =C139+Calcs!B$12 -> 4.28256909 | D140: 0.6910693845 | E140: -0.2879735068 | F140: -0.6282102781 | K140: =K139+Calcs!B$12 -> 4.28256909 | L140: 3.166585836 | M140: -1.319538744 | N140: -2.878555776
C141: =C140+Calcs!B$12 -> 4.313828718 | D141: 0.6508137614 | E141: -0.2525755184 | F141: -0.599803434 | K141: =K140+Calcs!B$12 -> 4.313828718 | L141: 3.223816295 | M141: -1.251136838 | N141: -2.971135829
C142: =C141+Calcs!B$12 -> 4.345088347 | D142: 0.6134397433 | E142: -0.2202846319 | F142: -0.5725233616 | K142: =K141+Calcs!B$12 -> 4.345088347 | L142: 3.281805151 | M142: -1.178487777 | N142: -3.062909011
C143: =C142+Calcs!B$12 -> 4.376347975 | D143: 0.5789838479 | E143: -0.1909211557 | F143: -0.5465998613 | K143: =K142+Calcs!B$12 -> 4.376347975 | L143: 3.340495745 | M143: -1.101535579 | N143: -3.153653625
C144: =C143+Calcs!B$12 -> 4.407607604 | D144: 0.5474797414 | E144: -0.1642902584 | F144: -0.5222478131 | K144: =K143+Calcs!B$12 -> 4.407607604 | L144: 3.39983073 | M144: -1.020236964 | N144: -3.243141306
C145: =C144+Calcs!B$12 -> 4.438867232 | D145: 0.5189582061 | E145: -0.1401830323 | F145: -0.4996662257 | K145: =K144+Calcs!B$12 -> 4.438867232 | L145: 3.459752132 | M145: -0.9345618572 | N145: -3.331137786
C146: =C145+Calcs!B$12 -> 4.47012686 | D146: 0.4934471098 | E146: -0.118377616 | F146: -0.4790373579 | K146: =K145+Calcs!B$12 -> 4.47012686 | L146: 3.520201401 | M146: -0.8444938501 | N146: -3.417403699
C147: =C146+Calcs!B$12 -> 4.501386489 | D147: 0.4709713792 | E147: -0.09864036942 | F147: -0.4605259141 | K147: =K146+Calcs!B$12 -> 4.501386489 | L147: 3.581119474 | M147: -0.7500306037 | N147: -3.501695416
C148: =C147+Calcs!B$12 -> 4.532646117 | D148: 0.4515529749 | E148: -0.08072709887 | F148: -0.4442783189 | K148: =K147+Calcs!B$12 -> 4.532646117 | L148: 3.64244683 | M148: -0.6511842058 | N148: -3.583765902
C149: =C148+Calcs!B$12 -> 4.563905746 | D149: 0.4352108703 | E149: -0.06438432481 | F149: -0.4304220723 | K149: =K148+Calcs!B$12 -> 4.563905746 | L149: 3.704123545 | M149: -0.5479814722 | N149: -3.663365603
C150: =C149+Calcs!B$12 -> 4.595165374 | D150: 0.4219610331 | E150: -0.04935058848 | F150: -0.4190651893 | K150: =K149+Calcs!B$12 -> 4.595165374 | L150: 3.766089356 | M150: -0.4404641932 | N150: -3.740243352
C151: =C150+Calcs!B$12 -> 4.626425002 | D151: 0.4118164094 | E151: -0.03535779135 | F151: -0.4102957246 | K151: =K150+Calcs!B$12 -> 4.626425002 | L151: 3.828283718 | M151: -0.3286893233 | N151: -3.814147291
C152: =C151+Calcs!B$12 -> 4.657684631 | D152: 0.4047869115 | E152: -0.02213256204 | F152: -0.4041813867 | K152: =K151+Calcs!B$12 -> 4.657684631 | L152: 3.890645861 | M152: -0.2127291137 | N152: -3.884825806
C153: =C152+Calcs!B$12 -> 4.688944259 | D153: 0.4008794076 | E153: -0.00939764502 | F153: -0.40076924 | K153: =K152+Calcs!B$12 -> 4.688944259 | L153: 3.953114853 | M153: -0.0926711859 | N153: -3.952028478
C154: =C153+Calcs!B$12 -> 4.720203887 | D154: 0.4000977159 | E154: 0.003126694654 | F154: -0.4000854985 | K154: =K153+Calcs!B$12 -> 4.720203887 | L154: 4.015629655 | M154: 0.03138145327 | N154: -4.015507033
C155: =C154+Calcs!B$12 -> 4.751463516 | D155: 0.4024426001 | E155: 0.01572125636 | F155: -0.4021354106 | K155: =K154+Calcs!B$12 -> 4.751463516 | L155: 4.078129186 | M155: 0.1593104567 | N155: -4.075016299
C156: =C155+Calcs!B$12 -> 4.782723144 | D156: 0.407911769 | E156: 0.02866648455 | F156: -0.4069032366 | K156: =K155+Calcs!B$12 -> 4.782723144 | L156: 4.140552378 | M156: 0.2909822412 | N156: -4.130315161
C157: =C156+Calcs!B$12 -> 4.813982773 | D157: 0.4164998788 | E157: 0.04224105083 | F157: -0.4143523171 | K157: =K156+Calcs!B$12 -> 4.813982773 | L157: 4.202838238 | M157: 0.426248152 | N157: -4.181167513
C158: =C157+Calcs!B$12 -> 4.845242401 | D158: 0.4281985382 | E158: 0.05672044337 | F158: -0.4244252342 | K158: =K157+Calcs!B$12 -> 4.845242401 | L158: 4.264925908 | M158: 0.5649446855 | N158: -4.227343197
C159: =C158+Calcs!B$12 -> 4.876502029 | D159: 0.4429963165 | E159: 0.07237556949 | F159: -0.4370440634 | K159: =K158+Calcs!B$12 -> 4.876502029 | L159: 4.326754724 | M159: 0.706893772 | N159: -4.268618938
C160: =C159+Calcs!B$12 -> 4.907761658 | D160: 0.4608787552 | E160: 0.08947137711 | F160: -0.4521107162 | K160: =K159+Calcs!B$12 -> 4.907761658 | L160: 4.388264272 | M160: 0.8519031158 | N160: -4.304779251
C161: =C160+Calcs!B$12 -> 4.939021286 | D161: 0.4818283815 | E161: 0.1082655009 | F161: -0.4695073701 | K161: =K160+Calcs!B$12 -> 4.939021286 | L161: 4.449394453 | M161: 0.9997665924 | N161: -4.335617344
C162: =C161+Calcs!B$12 -> 4.970280915 | D162: 0.5058247259 | E162: 0.1290069385 | F162: -0.4890969875 | K162: =K161+Calcs!B$12 -> 4.970280915 | L162: 4.510085537 | M162: 1.150264702 | N162: -4.360935985
C163: =C162+Calcs!B$12 -> 5.001540543 | D163: 0.532844342 | E163: 0.1519347627 | F163: -0.5107239182 | K163: =K162+Calcs!B$12 -> 5.001540543 | L163: 4.570278225 | M163: 1.303165076 | N163: -4.380548349
C164: =C163+Calcs!B$12 -> 5.032800171 | D164: 0.5628608292 | E164: 0.1772768744 | F164: -0.534214585 | K164: =K163+Calcs!B$12 -> 5.032800171 | L164: 4.629913702 | M164: 1.458223041 | N164: -4.394278832
C165: =C164+Calcs!B$12 -> 5.0640598 | D165: 0.5958448589 | E165: 0.2052488018 | F165: -0.5593782488 | K165: =K164+Calcs!B$12 -> 5.0640598 | L165: 4.688933701 | M165: 1.615182223 | N165: -4.401963838
C166: =C165+Calcs!B$12 -> 5.095319428 | D166: 0.6317642029 | E166: 0.2360525512 | F166: -0.5860078508 | K166: =K165+Calcs!B$12 -> 5.095319428 | L166: 4.747280552 | M166: 1.773775216 | N166: -4.403452523
C167: =C166+Calcs!B$12 -> 5.126579057 | D167: 0.670583765 | E167: 0.2698755134 | F167: -0.6138809276 | K167: =K166+Calcs!B$12 -> 5.126579057 | L167: 4.804897248 | M167: 1.933724285 | N167: -4.398607501
C168: =C167+Calcs!B$12 -> 5.157838685 | D168: 0.7122656152 | E168: 0.3068894304 | F168: -0.6427605963 | K168: =K167+Calcs!B$12 -> 5.157838685 | L168: 4.86172749 | M168: 2.094742113 | N168: -4.387305513
C169: =C168+Calcs!B$12 -> 5.189098313 | D169: 0.7567690268 | E169: =D169*COS(C169) -> 0.347249428 | F169: =D169*SIN(C169) -> -0.6723966052 | K169: =K168+Calcs!B$12 -> 5.189098313 | L169: 4.917715751 | M169: 2.256532603 | N169: -4.369438044
C170: =C169+Calcs!B$12 -> 5.220357942 | D170: 0.8040505161 | E170: 0.3910931166 | F170: -0.7025264455 | K170: =K169+Calcs!B$12 -> 5.220357942 | L170: 4.972807327 | M170: 2.418791701 | N170: -4.3449119
C171: =C170+Calcs!B$12 -> 5.25161757 | D171: 0.8540638852 | E171: 0.4385397647 | F171: -0.7328765208 | K171: =K170+Calcs!B$12 -> 5.25161757 | L171: 5.026948387 | M171: 2.581208269 | N171: -4.313649726
C172: =C171+Calcs!B$12 -> 5.282877199 | D172: 0.9067602667 | E172: 0.489689549 | F172: -0.7631633684 | K172: =K171+Calcs!B$12 -> 5.282877199 | L172: 5.080086032 | M172: 2.743464981 | N172: -4.275590484
C173: =C172+Calcs!B$12 -> 5.314136827 | D173: 0.9620881718 | E173: 0.5446228844 | F173: -0.7930949276 | K173: =K172+Calcs!B$12 -> 5.314136827 | L173: 5.13216834 | M173: 2.905239256 | N173: -4.230689865
C174: =C173+Calcs!B$12 -> 5.345396455 | D174: 1.01999354 | E174: 0.6033998354 | F174: -0.822371851 | K174: =K173+Calcs!B$12 -> 5.345396455 | L174: 5.183144425 | M174: 3.066204215 | N174: -4.178920655
C175: =C174+Calcs!B$12 -> 5.376656084 | D175: 1.080419794 | E175: 0.6660596132 | F175: -0.8506888523 | K175: =K174+Calcs!B$12 -> 5.376656084 | L175: 5.232964477 | M175: 3.226029654 | N175: -4.120273035
C176: =C175+Calcs!B$12 -> 5.407915712 | D176: 1.143307891 | E176: 0.7326201597 | F176: -0.8777360858 | K176: =K175+Calcs!B$12 -> 5.407915712 | L176: 5.281579818 | M176: 3.384383051 | N176: -4.054754831
C177: =C176+Calcs!B$12 -> 5.439175341 | D177: 1.208596385 | E177: 0.8030778209 | F177: -0.9032005514 | K177: =K176+Calcs!B$12 -> 5.439175341 | L177: 5.328942947 | M177: 3.540930572 | N177: -3.982391696
C178: =C177+Calcs!B$12 -> 5.470434969 | D178: 1.276221483 | E178: 0.8774071103 | F178: -0.9267675204 | K178: =K177+Calcs!B$12 -> 5.470434969 | L178: 5.375007586 | M178: 3.695338102 | N178: -3.903227236
C179: =C178+Calcs!B$12 -> 5.501694597 | D179: 1.34611711 | E179: 0.9555605646 | F179: -0.9481219756 | K179: =K178+Calcs!B$12 -> 5.501694597 | L179: 5.419728726 | M179: 3.847272279 | N179: -3.817323077
C180: =C179+Calcs!B$12 -> 5.532954226 | D180: 1.418214971 | E180: 1.037468691 | F180: -0.9669500599 | K180: =K179+Calcs!B$12 -> 5.532954226 | L180: 5.463062671 | M180: 3.99640153 | N180: -3.724758858
C181: =C180+Calcs!B$12 -> 5.564213854 | D181: 1.492444621 | E181: 1.123040011 | F181: -0.9829405278 | K181: =K180+Calcs!B$12 -> 5.564213854 | L181: 5.504967079 | M181: 4.142397112 | N181: -3.62563218
C182: =C181+Calcs!B$12 -> 5.595473483 | D182: 1.568733532 | E182: 1.21216119 | F182: -0.995786194 | K182: =K181+Calcs!B$12 -> 5.595473483 | L182: 5.545401007 | M182: 4.284934149 | N182: -3.520058474
C183: =C182+Calcs!B$12 -> 5.626733111 | D183: 1.647007162 | E183: 1.304697267 | F183: -1.005185372 | K183: =K182+Calcs!B$12 -> 5.626733111 | L183: 5.584324947 | M183: 4.423692662 | N183: -3.408170821
C184: =C183+Calcs!B$12 -> 5.657992739 | D184: 1.727189032 | E184: 1.400491975 | F184: -1.010843301 | K184: =K183+Calcs!B$12 -> 5.657992739 | L184: 5.621700867 | M184: 4.558358585 | N184: -3.290119701
C185: =C184+Calcs!B$12 -> 5.689252368 | D185: 1.809200797 | E185: 1.499368148 | F185: -1.012473545 | K185: =K184+Calcs!B$12 -> 5.689252368 | L185: 5.657492248 | M185: 4.688624772 | N185: -3.166072691
C186: =C185+Calcs!B$12 -> 5.720511996 | D186: 1.892962324 | E186: 1.601128221 | F186: -1.009799377 | K186: =K185+Calcs!B$12 -> 5.720511996 | L186: 5.691664119 | M186: 4.814191982 | N186: -3.03621409
C187: =C186+Calcs!B$12 -> 5.751771624 | D187: 1.978391773 | E187: 1.70555482 | F187: -1.002555117 | K187: =K186+Calcs!B$12 -> 5.751771624 | L187: 5.72418309 | M187: 4.934769843 | N187: -2.900744498
C188: =C187+Calcs!B$12 -> 5.783031253 | D188: 2.065405669 | E188: 1.812411431 | F188: -0.9904874471 | K188: =K187+Calcs!B$12 -> 5.783031253 | L188: 5.755017388 | M188: 5.050077791 | N188: -2.75988033
C189: =C188+Calcs!B$12 -> 5.814290881 | D189: 2.153918995 | E189: 1.921443163 | F189: -0.9733566703 | K189: =K188+Calcs!B$12 -> 5.814290881 | L189: 5.784136885 | M189: 5.159845983 | N189: -2.613853275
C190: =C189+Calcs!B$12 -> 5.84555051 | D190: 2.243845265 | E190: 2.032377579 | F190: -0.9509379316 | K190: =K189+Calcs!B$12 -> 5.84555051 | L190: 5.811513129 | M190: 5.263816168 | N190: -2.462909703
C191: =C190+Calcs!B$12 -> 5.876810138 | D191: 2.335096612 | E191: 2.144925611 | F191: -0.9230223798 | K191: =K190+Calcs!B$12 -> 5.876810138 | L191: 5.837119372 | M191: 5.361742536 | N191: -2.307310021
C192: =C191+Calcs!B$12 -> 5.908069766 | D192: 2.427583878 | E192: 2.258782552 | F192: -0.8894182738 | K192: =K191+Calcs!B$12 -> 5.908069766 | L192: 5.860930593 | M192: 5.45339252 | N192: -2.147327974
C193: =C192+Calcs!B$12 -> 5.939329395 | D193: 2.521216693 | E193: 2.373629114 | F193: -0.8499520254 | K193: =K192+Calcs!B$12 -> 5.939329395 | L193: 5.882923527 | M193: 5.538547556 | N193: -1.983249905
C194: =C193+Calcs!B$12 -> 5.970589023 | D194: 2.615903572 | E194: 2.489132548 | F194: -0.8044691756 | K194: =K193+Calcs!B$12 -> 5.970589023 | L194: 5.903076684 | M194: 5.617003803 | N194: -1.815373963
C195: =C194+Calcs!B$12 -> 6.001848652 | D195: =a*SIN(Q) + b -> 2.711551996 | E195: 2.604947837 | F195: -0.7528352998 | K195: =K194+Calcs!B$12 -> 6.001848652 | L195: =aa*COS(QQ) + bb -> 5.921370375 | M195: 5.68857281 | N195: -1.644009279
C196: =C195+Calcs!B$12 -> 6.03310828 | D196: 2.808068509 | E196: 2.720718938 | F196: -0.6949368382 | K196: =K195+Calcs!B$12 -> 6.03310828 | L196: 5.937786724 | M196: =L196*COS(K196) -> 5.753082142 | N196: =L196*SIN(K196) -> -1.469475093
C197: =C196+Calcs!B$12 -> 6.064367908 | D197: 2.905358806 | E197: 2.836080076 | F197: -0.6306818471 | K197: =K196+Calcs!B$12 -> 6.064367908 | L197: 5.952309691 | M197: 5.810375947 | N197: -1.292099848
C198: =C197+Calcs!B$12 -> 6.095627537 | D198: 3.003327826 | E198: 2.950657093 | F198: -0.5600006695 | K198: =K197+Calcs!B$12 -> 6.095627537 | L198: 5.964925086 | M198: 5.860315468 | N198: -1.112220255
C199: =C198+Calcs!B$12 -> 6.126887165 | D199: 3.101879846 | E199: 3.064068834 | F199: -0.4828465207 | K199: =K198+Calcs!B$12 -> 6.126887165 | L199: 5.975620582 | M199: 5.902779506 | N199: -0.9301803262
C200: =C199+Calcs!B$12 -> 6.158146794 | D200: 3.200918572 | E200: 3.175928568 | F200: -0.3991959862 | K200: =K199+Calcs!B$12 -> 6.158146794 | L200: 5.98438573 | M200: 5.937664821 | N200: -0.7463303766
C201: =C200+Calcs!B$12 -> 6.189406422 | D201: 3.300347233 | E201: 3.285845448 | F201: -0.3090494309 | K201: =K200+Calcs!B$12 -> 6.189406422 | L201: 5.991211964 | M201: 5.964886471 | N201: -0.5610260124
... 3 more rows

Sheet Defining Function
A1: Defining a Function in Excel
A3: Computers have very specific rules you must follow when defining a function. If you don't, the program will either not work at all or will work incorrectly.
A5: 1. The Variable used should be the one named in the instruction, usually x, though sometimes y, t, Q (for an angle theta),
A6: or even x and y (for a function of two variables).
A8: 2. Order of Operations: There five arithmetic operations, addition (+), subtraction (-), multiplication (*), division (/), and exponentiation or power (^). When computers see any of these operation symbols, they perform the indicated steps in a very particular order. First, the power is done. Second, products and quotients of adjacent terms is done. Third, and last, sums and differences of adjacent terms are done. So, in 10*x^3 + 5*x – 7, say with x = 2, the first pass only calculates 2^3 and ignores the multiplications and the sums and differences to calculate 2^3 = 8. The second pass looks at 10*8 + 5*2 – 7 and only does the multiplications, so it produces 80 + 10 - 7. The third pass looks at the +’s and –‘s to produce 80 + 10 – 7 = 83.
A10: 3. Parentheses If you need an operation involving more than two adjacent terms, as in Ö4^3 + 6^2, the computer would take the square root of 4 to produce 2^3 + 6^2; it would then cube the 2 and square the 6 to produce 8 + 36; and finally it would add the 8 and the 36 to get 44. If you actually wanted the square root of the entire expression, you would need to use parentheses, as in Ö(4^3 + 6^2) to tell the computer to do all the operations inside the parentheses before taking the square root. Therefore, it would calculate (4^3 + 6^2) = 64 + 36 = 100 and then take the square root of Ö100 = 10.
A12: 4. Built-In Functions Computer programs have built-in functions for most common algebraic functions. In Excel, the square root function is denoted by SQRT(…), so SQRT(100) = 10. Alternatively, you could enter it as 100^.5 or 100^(1/2); notice that parentheses are needed to have the ½ done first. The common trig functions are SIN (…), COS (…), and TAN (…), where the arguments are automatically interpreted as being in radians, not degrees. The logarithm to the base 10 is represented by LOG (…) and the logarithm with the base e, known as the natural logarithm, is LN (…). The corresponding exponential function with base e is EXP (x). If x is the variable, then each of these would be SQRT (x), SIN (x), COS (x), TAN (x), LOG (x) (for log with base 10 ), LN (x) (for log with base e ), and EXP (x).
